fUSD/lending_fUSD_20260604
["ID","MTS","AMOUNT","RATE_DAILY","PERIOD"]
[423941266,1780505442000,-500.0,0.00017998,2]
[423941270,1780505442000,-500.0,0.00017998,2]
[423941275,1780505442000,-500.0,0.00017998,2]
[423941276,1780505442000,-500.0,0.00017998,2]
[423941278,1780505442000,-500.0,0.00017998,2]
[423941284,1780505442000,-500.0,0.00017998,2]
[423941277,1780505442000,-500.0,0.00017998,2]
[423941281,1780505442000,-500.0,0.00017998,2]
[423941283,1780505442000,-500.0,0.00017998,2]
[423941282,1780505442000,-500.0,0.00017998,2]
[423941280,1780505442000,-500.0,0.00017998,2]
[423941279,1780505442000,-484.0139958,0.00017998,2]
[423941269,1780505442000,-500.0,0.00017998,2]
[423941288,1780505442000,-500.0,0.00017998,2]
[423941285,1780505442000,-500.0,0.00017998,2]
[423941273,1780505442000,-500.0,0.00017998,2]
[423941262,1780505442000,-500.0,0.00017998,2]
[423941274,1780505442000,-500.0,0.00017998,2]
[423941287,1780505442000,-500.0,0.00017998,2]
[423941254,1780505442000,-369.93625643,0.00035284,2]
[423941256,1780505442000,-1226.69487423,0.00035284,2]
[423941257,1780505442000,-500.0,0.00035284,2]
[423941255,1780505442000,-1434.08567585,0.00035284,2]
[423941258,1780505442000,-1011.02721498,0.00035284,2]
[423941259,1780505442000,-528.84460847,0.00035284,2]
[423941261,1780505442000,-146.11,0.00017998,2]
[423941260,1780505442000,-353.89,0.00017998,2]
[423941264,1780505442000,-202.2135727,0.00017998,2]
[423941263,1780505442000,-500.0,0.00017998,2]
[423941265,1780505442000,-297.7864273,0.00017998,2]
[423941267,1780505442000,-500.0,0.00017998,2]
[423941268,1780505442000,-500.0,0.00017998,2]
[423941271,1780505442000,-183.81165497,0.00017998,2]
[423941272,1780505442000,-500.0,0.00017998,2]
[423941286,1780505442000,-320.50105078,0.00017998,2]
[423941322,1780505442000,-981.0,0.00037555,5]
[423941296,1780505442000,-184.5,0.00027845,2]
[423941305,1780505442000,-211.85548897,0.00036,120]
[423941303,1780505442000,-151.0,0.00035848,2]
[423941313,1780505442000,-524.95089467,0.00037025,2]
[423941323,1780505442000,-1513.0,0.000376,30]
[423941312,1780505442000,-1582.39078943,0.00037025,2]
[423941315,1780505442000,-2504.49820804,0.00037167,2]
[423941307,1780505442000,-309.53968635,0.00036186,2]
[423941314,1780505442000,-1491.71781535,0.000371,7]
[423941318,1780505442000,-500.0,0.00037451,60]
[423941319,1780505442000,-150.0,0.00037546,120]
[423941321,1780505442000,-1161.0,0.00037555,5]
[423941317,1780505442000,-309.53968635,0.00037443,2]
[423941324,1780505442000,-499.54439265,0.00037635,2]
[423941290,1780505442000,-570.51280752,0.00017998,2]
[423941316,1780505442000,-164.373281,0.00037328,18]
[423941304,1780505442000,-162.74545142,0.00036,120]
[423941320,1780505442000,-159.49172195,0.0003755,2]
[423941309,1780505442000,-1513.0,0.000364,30]
[423941289,1780505442000,-500.0,0.00017998,2]
[423941300,1780505442000,-200.0,0.00035384,2]
[423941294,1780505442000,-500.0,0.00017998,2]
[423941297,1780505442000,-300.0,0.00035174,2]
[423941298,1780505442000,-1235229.01222434,0.00035284,2]
[423941299,1780505442000,-500.0,0.00035383,2]
[423941291,1780505442000,-500.0,0.00017998,2]
[423941295,1780505442000,-276.77,0.00024658,2]
[423941293,1780505442000,-500.0,0.00017998,2]
[423941301,1780505442000,-2504.49820804,0.00035635,2]
[423941311,1780505442000,-11794.6486675,0.00037,20]
[423941310,1780505442000,-159.49172195,0.000364,2]
[423941306,1780505442000,-255.13511229,0.00036,120]
[423941302,1780505442000,-200.0,0.00035738,2]
[423941292,1780505442000,-261.3778574,0.00017998,2]
[423941308,1780505442000,-1355.23492455,0.00036197,4]
[423941371,1780505443000,-163.3749,0.00037765,30]
[423941370,1780505443000,-163.3749,0.00037765,30]
[423941367,1780505443000,-151.0,0.00037765,30]
[423941385,1780505443000,-304.150073,0.00037808,30]
[423941366,1780505443000,-151.0,0.00037765,30]
[423941365,1780505443000,-151.0,0.00037765,30]
[423941364,1780505443000,-876.578282,0.00037765,28]
[423941363,1780505443000,-876.578282,0.00037765,28]
[423941373,1780505443000,-167.825575,0.00037765,30]
[423941357,1780505443000,-151.0,0.00037765,30]
[423941369,1780505443000,-163.3749,0.00037765,30]
[423941380,1780505443000,-151.0,0.00037808,30]
[423941379,1780505443000,-151.0,0.00037808,30]
[423941375,1780505443000,-167.825575,0.00037765,30]
[423941372,1780505443000,-167.825575,0.00037765,30]
[423941377,1780505443000,-151.0,0.00037808,30]
[423941376,1780505443000,-151.0,0.00037808,30]
[423941378,1780505443000,-151.0,0.00037808,30]
[423941381,1780505443000,-232.282029,0.00037808,30]
[423941383,1780505443000,-151.0,0.00037808,30]
[423941384,1780505443000,-304.150073,0.00037808,30]
[423941382,1780505443000,-151.0,0.00037808,30]
[423941389,1780505443000,-304.150073,0.00037808,30]
[423941355,1780505443000,-151.0,0.00037765,30]
[423941374,1780505443000,-167.825575,0.00037765,30]
[423941359,1780505443000,-876.578282,0.00037765,28]
[423941336,1780505443000,-151.0,0.00037765,30]
[423941349,1780505443000,-514.964234,0.00037765,30]
[423941326,1780505443000,-187.32,0.000377,2]
[423941325,1780505443000,-150.0,0.00037698,120]
[423941331,1780505443000,-283.982292,0.00037765,30]
[423941334,1780505443000,-151.0,0.00037765,30]
[423941330,1780505443000,-151.0,0.00037765,30]
[423941328,1780505443000,-151.0,0.00037765,30]
[423941333,1780505443000,-151.0,0.00037765,30]
[423941327,1780505443000,-151.0,0.00037765,30]
[423941332,1780505443000,-155.634719,0.00037765,30]
[423941329,1780505443000,-151.0,0.00037765,30]
[423941345,1780505443000,-151.0,0.00037765,30]
[423941361,1780505443000,-876.578282,0.00037765,28]
[423941346,1780505443000,-514.964234,0.00037765,30]
[423941339,1780505443000,-446.661655,0.00037765,30]
[423941337,1780505443000,-446.661655,0.00037765,30]
[423941344,1780505443000,-528.95505,0.00037765,7]
[423941340,1780505443000,-446.661655,0.00037765,30]
[423941343,1780505443000,-528.95505,0.00037765,7]
[423941342,1780505443000,-528.95505,0.00037765,7]
[423941338,1780505443000,-446.661655,0.00037765,30]
[423941341,1780505443000,-528.95505,0.00037765,7]
[423941351,1780505443000,-514.964234,0.00037765,30]
[423941347,1780505443000,-514.964234,0.00037765,30]
[423941353,1780505443000,-151.0,0.00037765,30]
[423941335,1780505443000,-151.0,0.00037765,20]
[423941386,1780505443000,-304.150073,0.00037808,30]
[423941368,1780505443000,-163.3749,0.00037765,30]
[423941392,1780505443000,-304.150073,0.00037808,30]
[423941422,1780505443000,-167.758599,0.00037808,30]
[423941425,1780505443000,-151.0,0.00037808,30]
[423941429,1780505443000,-151.0,0.00037808,30]
[423941432,1780505443000,-229.148262,0.00037808,30]
[423941437,1780505443000,-229.148262,0.00037808,30]
[423941430,1780505443000,-198.0,0.00037808,30]
[423941435,1780505443000,-229.148262,0.00037808,30]
[423941433,1780505443000,-229.148262,0.00037808,30]
[423941434,1780505443000,-229.148262,0.00037808,30]
[423941431,1780505443000,-229.148262,0.00037808,30]
[423941440,1780505443000,-200.215525,0.00037808,30]
[423941439,1780505443000,-200.215525,0.00037808,30]
[423941436,1780505443000,-229.148262,0.00037808,30]
[423941438,1780505443000,-229.148262,0.00037808,30]
[423941442,1780505443000,-200.215525,0.00037808,30]
[423941441,1780505443000,-200.215525,0.00037808,30]
[423941444,1780505443000,-200.215525,0.00037808,30]
[423941443,1780505443000,-200.215525,0.00037808,30]
[423941445,1780505443000,-200.215525,0.00037808,30]
[423941449,1780505443000,-151.0,0.00037808,30]
[423941447,1780505443000,-151.0,0.00037808,30]
[423941446,1780505443000,-200.215525,0.00037808,30]
[423941448,1780505443000,-151.0,0.00037808,30]
[423941450,1780505443000,-151.0,0.00037808,30]
[423941451,1780505443000,-151.0,0.00037808,30]
[423941426,1780505443000,-151.0,0.00037808,30]
[423941424,1780505443000,-151.0,0.00037808,30]
[423941387,1780505443000,-304.150073,0.00037808,30]
[423941421,1780505443000,-151.0,0.00037808,30]
[423941423,1780505443000,-151.0,0.00037808,30]
[423941396,1780505443000,-304.150073,0.00037808,30]
[423941394,1780505443000,-304.150073,0.00037808,30]
[423941398,1780505443000,-540.930758,0.00037808,30]
[423941400,1780505443000,-540.930758,0.00037808,30]
[423941410,1780505443000,-1140.511444,0.00037808,7]
[423941403,1780505443000,-540.930758,0.00037808,30]
[423941413,1780505443000,-1140.511444,0.00037808,7]
[423941404,1780505443000,-540.930758,0.00037808,30]
[423941411,1780505443000,-1140.511444,0.00037808,7]
[423941405,1780505443000,-540.930758,0.00037808,30]
[423941412,1780505443000,-1140.511444,0.00037808,7]
[423941402,1780505443000,-540.930758,0.00037808,30]
[423941409,1780505443000,-1140.511444,0.00037808,7]
[423941406,1780505443000,-540.930758,0.00037808,30]
[423941427,1780505443000,-151.0,0.00037808,30]
[423941419,1780505443000,-151.0,0.00037808,30]
[423941420,1780505443000,-151.0,0.00037808,30]
[423941428,1780505443000,-151.0,0.00037808,30]
[423941417,1780505443000,-151.0,0.00037808,30]
[423941416,1780505443000,-151.0,0.00037808,30]
[423941415,1780505443000,-1140.511444,0.00037808,7]
[423941414,1780505443000,-1140.511444,0.00037808,7]
[423941408,1780505443000,-1140.511444,0.00037808,7]
[423941407,1780505443000,-540.930758,0.00037808,30]
[423941418,1780505443000,-151.0,0.00037808,30]
[423941472,1780505444000,-151.0,0.00037808,30]
[423941479,1780505444000,-185.130436,0.00037808,30]
[423941477,1780505444000,-185.130436,0.00037808,30]
[423941485,1780505444000,-185.130436,0.00037808,30]
[423941488,1780505444000,-151.0,0.00037808,30]
[423941476,1780505444000,-185.130436,0.00037808,30]
[423941486,1780505444000,-151.0,0.00037808,30]
[423941478,1780505444000,-151.0,0.00037808,30]
[423941484,1780505444000,-248.740256,0.00037808,30]
[423941492,1780505444000,-150.0,0.00037853,120]
[423941482,1780505444000,-151.0,0.00037808,30]
[423941483,1780505444000,-185.130436,0.00037808,30]
[423941481,1780505444000,-185.130436,0.00037808,30]
[423941494,1780505444000,-1700.0,0.000379,13]
[423941490,1780505444000,-151.0,0.00037808,30]
[423941496,1780505444000,-250.0,0.00038,120]
[423941503,1780505444000,-1301.42140915,0.00038079,10]
[423941473,1780505444000,-151.0,0.00037808,30]
[423941480,1780505444000,-151.0,0.00037808,30]
[423941475,1780505444000,-185.130436,0.00037808,30]
[423941463,1780505444000,-241.510607,0.00037808,30]
[423941471,1780505444000,-151.0,0.00037808,30]
[423941464,1780505444000,-241.510607,0.00037808,30]
[423941457,1780505444000,-241.510607,0.00037808,30]
[423941455,1780505444000,-241.510607,0.00037808,30]
[423941454,1780505444000,-241.510607,0.00037808,30]
[423941452,1780505444000,-151.0,0.00037808,30]
[423941461,1780505444000,-241.510607,0.00037808,30]
[423941460,1780505444000,-241.510607,0.00037808,30]
[423941501,1780505444000,-203.66,0.0003802,60]
[423941474,1780505444000,-185.130436,0.00037808,30]
[423941456,1780505444000,-241.510607,0.00037808,30]
[423941459,1780505444000,-241.510607,0.00037808,30]
[423941458,1780505444000,-241.510607,0.00037808,30]
[423941462,1780505444000,-241.510607,0.00037808,30]
[423941467,1780505444000,-151.0,0.00037808,30]
[423941466,1780505444000,-151.0,0.00037808,30]
[423941469,1780505444000,-151.0,0.00037808,30]
[423941470,1780505444000,-151.0,0.00037808,30]
[423941468,1780505444000,-151.0,0.00037808,30]
[423941465,1780505444000,-241.510607,0.00037808,30]
[423941498,1780505444000,-265.85,0.00038009,13]
[423941453,1780505444000,-151.0,0.00037808,30]
[423941508,1780505444000,-1510.924984,0.0003808,7]
[423941557,1780505444000,-309.53968635,0.000387,2]
[423941548,1780505444000,-525.0,0.00038563,2]
[423941549,1780505444000,-150.0,0.00038563,2]
[423941550,1780505444000,-932.0,0.00038563,2]
[423941553,1780505444000,-2000.0,0.000386,7]
[423941556,1780505444000,-1453.0,0.0003869,5]
[423941554,1780505444000,-300.0,0.000386,14]
[423941560,1780505444000,-2504.49820804,0.000387,2]
[423941558,1780505444000,-300.0,0.000387,14]
[423941563,1780505444000,-309.14,0.00038751,2]
[423941569,1780505444000,-171.92,0.0003878,120]
[423941568,1780505444000,-220.22,0.0003878,120]
[423941565,1780505444000,-8696.0,0.00038756,9]
[423941570,1780505444000,-25000.0,0.0003878,25]
[423941562,1780505444000,-159.49172195,0.000387,2]
[423941571,1780505444000,-26313.74601259,0.0003878,27]
[423941566,1780505444000,-20705.0,0.00038758,7]
[423941505,1780505444000,-2994.660613,0.0003808,7]
[423941567,1780505444000,-8633.0,0.0003876,16]
[423941546,1780505444000,-1357.0,0.00038563,2]
[423941551,1780505444000,-418.0,0.00038563,2]
[423941555,1780505444000,-475.0,0.00038665,25]
[423941547,1780505444000,-1273.0,0.00038563,2]
[423941510,1780505444000,-151.0,0.00038125,30]
[423941512,1780505444000,-1000.0,0.000382,120]
[423941552,1780505444000,-151.0,0.00038587,2]
[423941517,1780505444000,-150.0,0.00038291,120]
[423941520,1780505444000,-1756.26465542,0.00038307,30]
[423941522,1780505444000,-150.0,0.00038309,120]
[423941524,1780505444000,-439.11385026,0.00038352,14]
[423941527,1780505444000,-151.0,0.00038356,5]
[423941536,1780505444000,-762.8838,0.0003841,101]
[423941529,1780505444000,-151.0,0.00038356,5]
[423941515,1780505444000,-152.0,0.0003823,4]
[423941531,1780505444000,-1000.0,0.000384,120]
[423941538,1780505444000,-390.25,0.00038412,60]
[423941545,1780505444000,-3552.0,0.00038563,2]
[423941541,1780505444000,-200.0,0.0003848,20]
[423941540,1780505444000,-300.0,0.00038431,24]
[423941542,1780505444000,-250.0,0.000385,120]
[423941543,1780505444000,-300.0,0.000385,14]
[423941544,1780505444000,-500.0,0.00038504,120]
[423941533,1780505444000,-762.8838,0.0003841,101]
[423941572,1780505445000,-25000.0,0.00038785,40]
[423941574,1780505445000,-152.03152453,0.0003879,2]
[423941573,1780505445000,-3333.0,0.0003879,14]
[423941575,1780505445000,-8632.0,0.00038796,11]
[423941577,1780505445000,-158.02764846,0.00038798,3]
[423941580,1780505445000,-328.585,0.000388,120]
[423941581,1780505445000,-375.0,0.000388,120]
[423941578,1780505445000,-66384.34956819,0.000388,120]
[423941579,1780505445000,-549314.03630149,0.000388,120]
[423941576,1780505445000,-150.0,0.00038798,119]
[423941582,1780505446000,-493.7470866,0.00035174,2]
[423941584,1780505446000,-151.0,0.00035284,7]
[423941583,1780505446000,-300.0,0.00035174,2]
[423941587,1780505446000,-3464.98893113,0.000388,120]
[423941585,1780505446000,-4782.5134134,0.000388,120]
[423941586,1780505446000,-152.32711776,0.00033371,20]
[423941588,1780505446000,-205.74350857,0.00035174,2]
[423941593,1780505446000,-150.99,0.00038363,120]
[423941590,1780505446000,-6198.27605709,0.000388,120]
[423941591,1780505446000,-300.0,0.00035174,2]
[423941592,1780505446000,-849.93,0.00035274,10]
[423941594,1780505446000,-6877.2,0.000388,120]
[423941595,1780505446000,-399.86321578,0.000388,120]
[423941596,1780505446000,-9816.0,0.000388,120]
[423941589,1780505446000,-400.00445131,0.00035174,2]
[423941599,1780505452000,334.77826758,0.00017998,2]
[423941601,1780505512000,-117.50093325,0.00017998,2]
[423941603,1780505512000,-11.39902218,0.00017998,2]
[423941602,1780505512000,-500.0,0.00017998,2]
[423941600,1780505512000,-371.10004457,0.00017982,7]
[423941604,1780505562000,-117.50093325,0.00017898,2]
[423941605,1780505563000,-685.23363376,0.00017898,2]
[423941606,1780505563000,-314.76636624,0.00017998,2]
[423941607,1780505573000,-187.90955323,0.00017198,2]
[423941609,1780505573000,-604.79753476,0.00017997,2]
[423941608,1780505573000,-207.29291201,0.00017198,2]
[423941612,1780505582000,-482.6413017,0.00017997,2]
[423941611,1780505582000,-500.0,0.00017997,2]
[423941610,1780505582000,-17.3586983,0.00017997,2]
[423941613,1780505599000,-17.3586983,0.00017997,2]
[423941614,1780505616000,-203.82404703,0.00017897,2]
[423941616,1780505655000,-536.0,0.00018,2]
[423941615,1780505655000,-185.23363376,0.00017998,2]
[423941617,1780505670000,-150.0,0.00018179,2]
[423941619,1780505709000,-500.0,0.00017997,2]
[423941618,1780505709000,-500.0,0.00017997,2]
[423941621,1780505714000,-350.79922474,0.00017997,2]
[423941620,1780505714000,-500.0,0.00017997,2]
[423941624,1780505714000,-484.0139958,0.00017997,2]
[423941622,1780505714000,-149.20077526,0.00017997,2]
[423941623,1780505714000,-350.79922474,0.00017997,2]
[423941625,1780505714000,-165.18677946,0.00017997,2]
[423941626,1780505715000,-334.81322054,0.00017997,2]
[423941628,1780505715000,-165.18677946,0.00017997,2]
[423941627,1780505715000,-500.0,0.00017997,2]
[423941631,1780505715000,-165.18677946,0.00017997,2]
[423941629,1780505715000,-334.81322054,0.00017997,2]
[423941632,1780505715000,-334.81322054,0.00017997,2]
[423941633,1780505715000,-291.25698313,0.00017997,2]
[423941635,1780505715000,-190.11814136,0.00017997,2]
[423941634,1780505715000,-183.81165497,0.00017997,2]
[423941630,1780505715000,-500.0,0.00017997,2]
[423941638,1780505716000,-190.11814136,0.00017997,2]
[423941636,1780505716000,-309.88185864,0.00017997,2]
[423941637,1780505716000,-500.0,0.00017997,2]
[423941639,1780505716000,-309.88185864,0.00017997,2]
[423941644,1780505716000,-190.11814136,0.00017997,2]
[423941641,1780505716000,-190.11814136,0.00017997,2]
[423941642,1780505716000,-309.88185864,0.00017997,2]
[423941643,1780505716000,-500.0,0.00017997,2]
[423941640,1780505716000,-500.0,0.00017997,2]
[423941647,1780505717000,-244.83233898,0.00017997,2]
[423941645,1780505717000,-255.16766102,0.00017997,2]
[423941648,1780505717000,-255.16766102,0.00017997,2]
[423941646,1780505717000,-500.0,0.00017997,2]
[423941649,1780505717000,-500.0,0.00017997,2]
[423941650,1780505717000,-244.83233898,0.00017997,2]
[423941653,1780505717000,-244.83233898,0.00017997,2]
[423941652,1780505717000,-500.0,0.00017997,2]
[423941651,1780505717000,-255.16766102,0.00017997,2]
[423941662,1780505718000,-500.0,0.00017997,2]
[423941663,1780505718000,-81.37081221,0.00017997,2]
[423941661,1780505718000,-418.62918779,0.00017997,2]
[423941660,1780505718000,-81.37081221,0.00017997,2]
[423941659,1780505718000,-500.0,0.00017997,2]
[423941657,1780505718000,-255.16766102,0.00017997,2]
[423941656,1780505718000,-244.83233898,0.00017997,2]
[423941654,1780505718000,-255.16766102,0.00017997,2]
[423941655,1780505718000,-500.0,0.00017997,2]
[423941658,1780505718000,-163.46152677,0.00017997,2]
[423941667,1780505719000,-418.62918779,0.00017997,2]
[423941666,1780505719000,-81.37081221,0.00017997,2]
[423941665,1780505719000,-500.0,0.00017997,2]
[423941664,1780505719000,-418.62918779,0.00017997,2]
[423941676,1780505973000,-536.0,0.00018,2]
[423941680,1780506044000,-334.77826758,0.00018342,7]
[423941681,1780506059000,-36.32177699,0.00018342,7]
[423941683,1780506112000,-157.14012238,0.00018342,7]
[423941685,1780506165000,-250.0,0.0001856,2]
[423941686,1780506219000,-501.0,0.00018,2]
[423941687,1780506272000,-175.51264232,0.00018776,2]
[423941688,1780506286000,-536.0,0.00018,2]
[423941689,1780506326000,-252.27106642,0.00018826,2]
[423941690,1780506379000,-417.0,0.00018873,2]
[423941691,1780506432000,-271.69842249,0.00018873,2]
[423941692,1780506453000,-154.98,0.00018061,2]
[423941693,1780506485000,-1806.85426032,0.00018061,2]
[423941694,1780506487000,150.0,9.836e-05,2]
[423941696,1780506488000,150.0,9.854e-05,2]
[423941695,1780506488000,150.0,9.845e-05,2]
[423941697,1780506488000,150.0,9.863e-05,2]
[423941698,1780506489000,150.0,9.872e-05,2]
[423941700,1780506490000,150.0,9.889e-05,2]
[423941699,1780506490000,150.0,9.88e-05,2]
[423941701,1780506491000,150.0,9.898e-05,2]
[423941702,1780506492000,150.0,9.907e-05,2]
[423941703,1780506493000,150.0,9.916e-05,2]
[423941704,1780506494000,150.0,9.925e-05,2]
[423941705,1780506494000,150.0,9.934e-05,2]
[423941706,1780506495000,150.0,9.943e-05,2]
[423941707,1780506496000,150.0,9.951e-05,2]
[423941708,1780506497000,150.0,9.96e-05,2]
[423941710,1780506498000,150.0,9.978e-05,2]
[423941709,1780506498000,150.0,9.969e-05,2]
[423941711,1780506499000,150.0,9.987e-05,2]
[423941712,1780506501000,150.0,9.996e-05,2]
[423941714,1780506502000,150.0,0.00010014,2]
[423941713,1780506502000,150.0,0.00010005,2]
[423941715,1780506503000,150.0,0.00010022,2]
[423941716,1780506504000,150.0,0.00010031,2]
[423941717,1780506505000,150.0,0.0001004,2]
[423941718,1780506506000,150.0,0.00010049,2]
[423941720,1780506507000,150.0,0.00010067,2]
[423941719,1780506507000,150.0,0.00010058,2]
[423941721,1780506508000,150.0,0.00010076,2]
[423941722,1780506509000,150.0,0.00010085,2]
[423941723,1780506510000,150.0,0.00010094,2]
[423941724,1780506511000,150.0,0.00010102,2]
[423941725,1780506512000,150.0,0.00010111,2]
[423941726,1780506513000,150.0,0.0001012,2]
[423941727,1780506514000,150.0,0.00010129,2]
[423941728,1780506515000,150.0,0.00010138,2]
[423941729,1780506516000,150.0,0.00010147,2]
[423941730,1780506517000,150.0,0.00010156,2]
[423941731,1780506518000,150.0,0.00010165,2]
[423941732,1780506518000,-161.21,0.00027566,120]
[423941733,1780506518000,-518.42,0.00027614,120]
[423941736,1780506519000,150.0,0.00010182,2]
[423941734,1780506519000,-1000.0,0.00029,120]
[423941735,1780506519000,150.0,0.00010173,2]
[423941737,1780506520000,150.0,0.00010191,2]
[423941739,1780506522000,150.0,0.00010209,2]
[423941738,1780506522000,150.0,0.000102,2]
[423941740,1780506523000,150.0,0.00010218,2]
[423941741,1780506524000,150.0,0.00010227,2]
[423941742,1780506525000,150.0,0.00010236,2]
[423941743,1780506526000,150.0,0.00010244,2]
[423941744,1780506527000,150.0,0.00010253,2]
[423941745,1780506528000,150.0,0.00010262,2]
[423941746,1780506529000,150.0,0.00010271,2]
[423941748,1780506530000,150.0,0.00010289,2]
[423941747,1780506530000,150.0,0.0001028,2]
[423941749,1780506531000,150.0,0.00010298,2]
[423941750,1780506532000,150.0,0.00010307,2]
[423941751,1780506533000,150.0,0.00010315,2]
[423941752,1780506534000,150.0,0.00010324,2]
[423941753,1780506534000,150.0,0.00010333,2]
[423941754,1780506535000,150.0,0.00010342,2]
[423941755,1780506536000,150.0,0.00010351,2]
[423941756,1780506537000,150.0,0.0001036,2]
[423941758,1780506539000,150.0,0.00010378,2]
[423941757,1780506539000,150.0,0.00010369,2]
[423941759,1780506540000,150.0,0.00010387,2]
[423941760,1780506540000,150.0,0.00010395,2]
[423941761,1780506541000,150.0,0.00010404,2]
[423941763,1780506542000,150.0,0.00010422,2]
[423941762,1780506542000,150.0,0.00010413,2]
[423941764,1780506543000,150.0,0.00010431,2]
[423941765,1780506544000,150.0,0.0001044,2]
[423941766,1780506545000,150.0,0.00010449,2]
[423941767,1780506546000,150.0,0.00010458,2]
[423941768,1780506546000,150.0,0.00010466,2]
[423941769,1780506547000,150.0,0.00010475,2]
[423941770,1780506548000,150.0,0.00010484,2]
[423941771,1780506549000,150.0,0.00010493,2]
[423941772,1780506550000,150.0,0.00010502,2]
[423941774,1780506551000,150.0,0.0001052,2]
[423941773,1780506551000,150.0,0.00010511,2]
[423941775,1780506552000,150.0,0.00010529,2]
[423941776,1780506553000,150.0,0.00010537,2]
[423941778,1780506554000,150.0,0.00010555,2]
[423941777,1780506554000,150.0,0.00010546,2]
[423941779,1780506555000,150.0,0.00010564,2]
[423941780,1780506556000,150.0,0.00010573,2]
[423941781,1780506557000,150.0,0.00010582,2]
[423941783,1780506558000,150.0,0.000106,2]
[423941782,1780506558000,150.0,0.00010591,2]
[423941784,1780506559000,150.0,0.00010609,2]
[423941785,1780506560000,150.0,0.00010617,2]
[423941786,1780506561000,150.0,0.00010626,2]
[423941787,1780506562000,150.0,0.00010635,2]
[423941788,1780506562000,150.0,0.00010644,2]
[423941789,1780506563000,150.0,0.00010653,2]
[423941790,1780506564000,150.0,0.00010662,2]
[423941791,1780506565000,150.0,0.00010671,2]
[423941793,1780506566000,150.0,0.00010688,2]
[423941792,1780506566000,150.0,0.0001068,2]
[423941794,1780506567000,150.0,0.00010697,2]
[423941795,1780506568000,150.0,0.00010706,2]
[423941796,1780506569000,150.0,0.00010715,2]
[423941797,1780506570000,150.0,0.00010724,2]
[423941798,1780506570000,150.0,0.00010733,2]
[423941799,1780506571000,150.0,0.00010742,2]
[423941800,1780506572000,150.0,0.00010751,2]
[423941801,1780506573000,150.0,0.00010759,2]
[423941803,1780506574000,150.0,0.00010777,2]
[423941802,1780506574000,150.0,0.00010768,2]
[423941804,1780506575000,150.0,0.00010786,2]
[423941805,1780506577000,150.0,0.00010795,2]
[423941807,1780506578000,150.0,0.00010813,2]
[423941806,1780506578000,150.0,0.00010804,2]
[423941808,1780506579000,150.0,0.00010822,2]
[423941809,1780506580000,150.0,0.00010831,2]
[423941810,1780506581000,150.0,0.00010839,2]
[423941811,1780506582000,150.0,0.00010848,2]
[423941813,1780506583000,150.0,0.00010866,2]
[423941812,1780506583000,150.0,0.00010857,2]
[423941814,1780506584000,150.0,0.00010875,2]
[423941815,1780506585000,150.0,0.00010884,2]
[423941817,1780506586000,150.0,0.00010902,2]
[423941816,1780506586000,150.0,0.00010893,2]